[Event "*** MasterClass Titled Tuesday Blitz"]
[Site "Chess.com"]
[Date "2017.12.12"]
[Round "10"]
[White "nurmiTV"]
[Black "djano"]
[Result "1-0"]
[WhiteElo "2442"]
[BlackElo "2350"]
[TimeControl "180+2"]
[EndTime "15:21:11 PST"]
[Termination "nurmiTV won by resignation"]

1. e4 {[%clk 0:03:00.3]} 1... c5 {[%clk 0:02:59.6]} 2. Nf3 {[%clk 0:03:01.2]}
2... d6 {[%clk 0:03:00]} 3. d4 {[%clk 0:03:02.2]} 3... cxd4 {[%clk 0:03:01.5]}
4. Nxd4 {[%clk 0:03:04.1]} 4... Nf6 {[%clk 0:03:03]} 5. Nc3 {[%clk 0:03:05.3]}
5... a6 {[%clk 0:03:04.4]} 6. g3 {[%clk 0:03:06.3]} 6... Nc6 {[%clk 0:03:02.7]}
7. Nde2 {[%clk 0:03:06.7]} 7... b5 {[%clk 0:02:59.3]} 8. Bg2 {[%clk 0:03:07.2]}
8... Bb7 {[%clk 0:03:00.1]} 9. a3 {[%clk 0:03:06.2]} 9... e6 {[%clk 0:02:59.7]}
10. h3 {[%clk 0:03:06.9]} 10... Be7 {[%clk 0:03:01]} 11. O-O {[%clk 0:03:07.8]}
11... O-O {[%clk 0:03:02.1]} 12. g4 {[%clk 0:03:08]} 12... Rb8 {[%clk
0:02:56.9]} 13. Ng3 {[%clk 0:03:04.3]} 13... b4 {[%clk 0:02:55]} 14. axb4 {[%clk
0:03:00.9]} 14... Nxb4 {[%clk 0:02:56.2]} 15. g5 {[%clk 0:03:00.8]} 15... Nd7
{[%clk 0:02:57]} 16. h4 {[%clk 0:02:53]} 16... d5 {[%clk 0:02:57.7]} 17. exd5
{[%clk 0:02:51.2]} 17... exd5 {[%clk 0:02:54.6]} 18. Nxd5 {[%clk 0:02:51.7]}
18... Bxd5 {[%clk 0:02:47.4]} 19. Bxd5 {[%clk 0:02:53.6]} 19... Ne5 {[%clk
0:02:40]} 20. Bg2 {[%clk 0:02:45.4]} 20... Qxd1 {[%clk 0:02:39.6]} 21. Rxd1
{[%clk 0:02:47.3]} 21... Nxc2 {[%clk 0:02:40.9]} 22. Rxa6 {[%clk 0:02:48.1]}
22... Ng6 {[%clk 0:02:31.8]} 23. h5 {[%clk 0:02:42]} 23... Nh4 {[%clk 0:02:33]}
24. Be4 {[%clk 0:02:42.5]} 24... Nb4 {[%clk 0:02:25.2]} 25. Ra4 {[%clk
0:02:40.6]} 25... Bc5 {[%clk 0:02:18.3]} 26. Bf4 {[%clk 0:02:17]} 26... Rbd8
{[%clk 0:02:10]} 27. Rxd8 {[%clk 0:02:12.8]} 27... Rxd8 {[%clk 0:02:11.9]} 28.
Ra8 {[%clk 0:02:14.4]} 28... Rxa8 {[%clk 0:02:09.7]} 29. Bxa8 {[%clk 0:02:16.3]}
29... Nd3 {[%clk 0:02:10.1]} 30. Be3 {[%clk 0:02:05.9]} 30... Bxe3 {[%clk
0:02:08.2]} 31. fxe3 {[%clk 0:02:07.8]} 31... Nxb2 {[%clk 0:02:09.8]} 32. Kh2
{[%clk 0:02:03.2]} 32... g6 {[%clk 0:02:09.6]} 33. Be4 {[%clk 0:01:51.8]} 33...
Nd1 {[%clk 0:02:07.5]} 34. Kh3 {[%clk 0:01:48.1]} 34... Nf5 {[%clk 0:02:04.8]}
35. Bxf5 {[%clk 0:01:48.9]} 35... gxf5 {[%clk 0:02:03.4]} 36. Nxf5 {[%clk
0:01:50.8]} 36... f6 {[%clk 0:02:00.7]} 37. Kg4 {[%clk 0:01:40.9]} 37... fxg5
{[%clk 0:02:00.2]} 38. Kxg5 {[%clk 0:01:41.8]} 38... Nf2 {[%clk 0:01:58.1]} 39.
Kf6 {[%clk 0:01:35.6]} 39... Ng4+ {[%clk 0:01:56.1]} 40. Kg5 {[%clk 0:01:33.1]}
40... Ne5 {[%clk 0:01:52.1]} 41. e4 {[%clk 0:01:32.6]} 41... Nd7 {[%clk
0:01:49.6]} 42. Kf4 {[%clk 0:01:24.7]} 42... Kf7 {[%clk 0:01:44.3]} 43. e5
{[%clk 0:01:24.1]} 43... Nc5 {[%clk 0:01:37.7]} 44. Nd4 {[%clk 0:01:21.4]} 44...
Kg7 {[%clk 0:01:28.2]} 45. Kg5 {[%clk 0:01:12.6]} 45... Ne4+ {[%clk 0:01:26.6]}
46. Kf5 {[%clk 0:01:12.2]} 46... Ng3+ {[%clk 0:01:27.5]} 47. Kg4 {[%clk
0:01:11.4]} 47... Ne4 {[%clk 0:01:28.5]} 48. Nf5+ {[%clk 0:01:11.5]} 48... Kf7
{[%clk 0:01:27]} 49. Kf4 {[%clk 0:00:57]} 49... Nc5 {[%clk 0:01:27.8]} 50. Nd4
{[%clk 0:00:52.5]} 50... Kg7 {[%clk 0:01:13.6]} 51. Kg5 {[%clk 0:00:28.1]} 51...
Ne4+ {[%clk 0:01:13.7]} 52. Kg4 {[%clk 0:00:26.6]} 52... Nc5 {[%clk 0:01:07.5]}
53. Ne2 {[%clk 0:00:22.3]} 53... Ne6 {[%clk 0:00:55.3]} 54. Kf5 {[%clk
0:00:21.7]} 54... Kf7 {[%clk 0:00:50.5]} 55. Nf4 {[%clk 0:00:20]} 55... Nd4+
{[%clk 0:00:50.9]} 56. Ke4 {[%clk 0:00:19.1]} 56... Nc6 {[%clk 0:00:47.4]} 57.
Kd5 {[%clk 0:00:19.4]} 57... Ne7+ {[%clk 0:00:45.5]} 58. Kd6 {[%clk 0:00:20.2]}
58... Nf5+ {[%clk 0:00:46.5]} 59. Kd7 {[%clk 0:00:20.6]} 59... Nd4 {[%clk
0:00:46.8]} 60. e6+ {[%clk 0:00:19.3]} 60... Nxe6 {[%clk 0:00:45.9]} 61. Nxe6
{[%clk 0:00:20.3]} 61... Kf6 {[%clk 0:00:47.1]} 62. Kd6 {[%clk 0:00:17.8]} 62...
Kf5 {[%clk 0:00:35.9]} 63. Ke7 {[%clk 0:00:17.8]} 63... Kg4 {[%clk 0:00:33.6]}
64. Ng7 {[%clk 0:00:18]} 64... Kg5 {[%clk 0:00:30.7]} 65. Kf7 {[%clk 0:00:19.3]}
65... Kh6 {[%clk 0:00:30.1]} 66. Kg8 {[%clk 0:00:20]} 66... Kg5 {[%clk
0:00:28.6]} 67. Kxh7 {[%clk 0:00:21.9]} 67... Kf6 {[%clk 0:00:29.9]} 68. h6
{[%clk 0:00:21.1]} 68... Kf7 {[%clk 0:00:30.5]} 1-0

[Event "*** MasterClass Titled Tuesday Blitz"]
[Site "Chess.com"]
[Date "2017.12.12"]
[Round "10"]
[White "A-Fier"]
[Black "tigra"]
[Result "1/2-1/2"]
[WhiteElo "2637"]
[BlackElo "2667"]
[TimeControl "180+2"]
[EndTime "15:22:35 PST"]
[Termination "Game drawn by agreement"]

1. d4 {[%clk 0:03:01.9]} 1... e6 {[%clk 0:03:01.9]} 2. c4 {[%clk 0:02:58.8]}
2... b6 {[%clk 0:03:02.9]} 3. e4 {[%clk 0:02:59]} 3... Bb7 {[%clk 0:03:01.6]} 4.
Bd3 {[%clk 0:03:00]} 4... Nc6 {[%clk 0:03:03.1]} 5. Ne2 {[%clk 0:03:00.1]} 5...
Nb4 {[%clk 0:03:04.6]} 6. Nbc3 {[%clk 0:03:01.5]} 6... Nxd3+ {[%clk 0:03:04.9]}
7. Qxd3 {[%clk 0:03:03]} 7... h6 {[%clk 0:03:06.5]} 8. Be3 {[%clk 0:03:03.3]}
8... g5 {[%clk 0:03:07.4]} 9. O-O-O {[%clk 0:03:01.5]} 9... Bg7 {[%clk
0:03:08.6]} 10. f3 {[%clk 0:03:01.1]} 10... Qe7 {[%clk 0:03:07.7]} 11. h4 {[%clk
0:03:00.9]} 11... gxh4 {[%clk 0:03:08.1]} 12. Bf4 {[%clk 0:02:59.9]} 12... d6
{[%clk 0:03:08.5]} 13. c5 {[%clk 0:02:54.6]} 13... Nf6 {[%clk 0:02:52.1]} 14.
cxd6 {[%clk 0:02:49]} 14... cxd6 {[%clk 0:02:52.8]} 15. Nb5 {[%clk 0:02:50.4]}
15... Rd8 {[%clk 0:02:50.2]} 16. Nxa7 {[%clk 0:02:44.7]} 16... Bxe4 {[%clk
0:02:47.5]} 17. fxe4 {[%clk 0:02:40.3]} 17... Qxa7 {[%clk 0:02:47.3]} 18. Nc3
{[%clk 0:02:41.8]} 18... d5 {[%clk 0:02:40.2]} 19. e5 {[%clk 0:02:38.7]} 19...
Ne4 {[%clk 0:02:41.1]} 20. Nxe4 {[%clk 0:02:19]} 20... dxe4 {[%clk 0:02:43]} 21.
Qxe4 {[%clk 0:02:10.5]} 21... Qxa2 {[%clk 0:02:42.2]} 22. Qc6+ {[%clk
0:02:11.3]} 22... Kf8 {[%clk 0:02:43.5]} 23. Rxh4 {[%clk 0:02:08.2]} 23... h5
{[%clk 0:02:33.8]} 24. Rh3 {[%clk 0:02:06.6]} 24... Qa1+ {[%clk 0:02:31.9]} 25.
Kc2 {[%clk 0:02:07]} 25... Qa6 {[%clk 0:02:33.4]} 26. Rc3 {[%clk 0:01:58.9]}
26... Kg8 {[%clk 0:02:30.2]} 27. Qe4 {[%clk 0:01:58.6]} 27... h4 {[%clk
0:02:27.7]} 28. Bg5 {[%clk 0:01:57.7]} 28... Rc8 {[%clk 0:02:09.5]} 29. Rd3
{[%clk 0:01:58.6]} 29... Qa4+ {[%clk 0:01:48.4]} 30. Kb1 {[%clk 0:01:54.1]}
30... Re8 {[%clk 0:01:19.3]} 31. Bf6 {[%clk 0:01:53.5]} 31... Rh6 {[%clk
0:01:18.5]} 32. Bxh4 {[%clk 0:01:43.6]} 32... b5 {[%clk 0:00:51.9]} 33. g3
{[%clk 0:01:30.8]} 33... Rh5 {[%clk 0:00:50.3]} 34. Qc6 {[%clk 0:01:15.7]} 34...
Rb8 {[%clk 0:00:40.8]} 35. Ra3 {[%clk 0:01:05.3]} 35... Qb4 {[%clk 0:00:40.6]}
36. Qc3 {[%clk 0:01:06.1]} 36... Qf8 {[%clk 0:00:39.9]} 37. Ra7 {[%clk
0:00:56.8]} 37... Rf5 {[%clk 0:00:39.6]} 38. Rf3 {[%clk 0:00:56]} 38... Rc8
{[%clk 0:00:39.7]} 39. Qd3 {[%clk 0:00:56.2]} 39... Ra8 {[%clk 0:00:13.4]} 40.
Rxa8 {[%clk 0:00:32.4]} 40... Qxa8 {[%clk 0:00:15.3]} 41. Rxf5 {[%clk
0:00:33.2]} 41... exf5 {[%clk 0:00:17.2]} 42. Qxf5 {[%clk 0:00:28.3]} 42... Qh1+
{[%clk 0:00:16.3]} 43. Kc2 {[%clk 0:00:29.5]} 43... Qg2+ {[%clk 0:00:16.6]} 44.
Kc3 {[%clk 0:00:29.9]} 44... b4+ {[%clk 0:00:16.6]} 45. Kxb4 {[%clk 0:00:22.6]}
45... Qxb2+ {[%clk 0:00:17.3]} 46. Kc4 {[%clk 0:00:23.4]} 46... Qa2+ {[%clk
0:00:13.2]} 47. Kc3 {[%clk 0:00:23.5]} 47... Qa1+ {[%clk 0:00:14.2]} 48. Kd2
{[%clk 0:00:20]} 48... Qxd4+ {[%clk 0:00:14.8]} 49. Ke2 {[%clk 0:00:21.6]} 49...
Bxe5 {[%clk 0:00:15.5]} 50. Qg5+ {[%clk 0:00:21]} 50... Kh7 {[%clk 0:00:16.3]}
51. Qh5+ {[%clk 0:00:21.5]} 51... Kg7 {[%clk 0:00:16.9]} 52. Qg5+ {[%clk
0:00:23]} 52... Kf8 {[%clk 0:00:18.1]} 53. Qh6+ {[%clk 0:00:23.4]} 53... Ke8
{[%clk 0:00:17.6]} 54. Qc6+ {[%clk 0:00:24]} 54... Kf8 {[%clk 0:00:18.7]} 55.
Qc8+ {[%clk 0:00:25]} 55... Kg7 {[%clk 0:00:19.5]} 56. Qf5 {[%clk 0:00:25.9]}
56... Qc4+ {[%clk 0:00:20.1]} 57. Kf2 {[%clk 0:00:24.3]} 57... Qd4+ {[%clk
0:00:18.6]} 58. Kg2 {[%clk 0:00:25.3]} 58... Qd5+ {[%clk 0:00:19.9]} 59. Qf3
{[%clk 0:00:24.7]} 59... Qd2+ {[%clk 0:00:20.2]} 60. Kh3 {[%clk 0:00:25.6]}
60... Qd7+ {[%clk 0:00:19.1]} 61. Kg2 {[%clk 0:00:22.8]} 61... Qe6 {[%clk
0:00:19.3]} 62. Qe4 {[%clk 0:00:22.5]} 62... f5 {[%clk 0:00:20]} 63. Qb7+ {[%clk
0:00:22.4]} 63... Kg6 {[%clk 0:00:21.3]} 64. Qf3 {[%clk 0:00:23.1]} 64... Qc4
{[%clk 0:00:21.3]} 65. Qe3 {[%clk 0:00:22.3]} 65... Qd5+ {[%clk 0:00:21.4]} 66.
Kh2 {[%clk 0:00:22.1]} 66... Kf7 {[%clk 0:00:21.7]} 67. Qg5 {[%clk 0:00:21.2]}
67... Qe6 {[%clk 0:00:19.9]} 68. Qd8 {[%clk 0:00:21.7]} 68... Bd6 {[%clk
0:00:20.2]} 69. Qg5 {[%clk 0:00:19]} 69... Qe5 {[%clk 0:00:21]} 70. Qh5+ {[%clk
0:00:19.8]} 70... Ke6 {[%clk 0:00:22.2]} 71. Qg6+ {[%clk 0:00:20.9]} 71... Kd5
{[%clk 0:00:23.2]} 72. Qf7+ {[%clk 0:00:22.4]} 72... Kc6 {[%clk 0:00:22]} 73.
Qc4+ {[%clk 0:00:22.8]} 73... Bc5 {[%clk 0:00:23.3]} 74. Qa6+ {[%clk 0:00:23.2]}
74... Kd5 {[%clk 0:00:24.3]} 75. Bf6 {[%clk 0:00:22.2]} 75... Qe4 {[%clk
0:00:19.7]} 76. Qa2+ {[%clk 0:00:22.4]} 76... Kd6 {[%clk 0:00:20]} 77. Qa6+
{[%clk 0:00:19.9]} 77... Kd7 {[%clk 0:00:21.2]} 78. Qb5+ {[%clk 0:00:20.2]}
78... Kd6 {[%clk 0:00:21.6]} 79. Qa6+ {[%clk 0:00:21.2]} 79... Kd5 {[%clk
0:00:22.4]} 80. Qa2+ {[%clk 0:00:19.9]} 80... Kc6 {[%clk 0:00:22.8]} 81. Bg5
{[%clk 0:00:18.6]} 81... Bd6 {[%clk 0:00:22.6]} 82. Qa8+ {[%clk 0:00:18.3]}
82... Kd7 {[%clk 0:00:23.2]} 83. Qa7+ {[%clk 0:00:18.7]} 83... Ke6 {[%clk
0:00:23.8]} 84. Qa2+ {[%clk 0:00:16.7]} 84... Qd5 {[%clk 0:00:24.9]} 85. Qxd5+
{[%clk 0:00:16.4]} 85... Kxd5 {[%clk 0:00:25.9]} 86. Kg2 {[%clk 0:00:18.3]}
86... Ke4 {[%clk 0:00:25.9]} 1/2-1/2

[Event "*** MasterClass Titled Tuesday Blitz"]
[Site "Chess.com"]
[Date "2017.12.12"]
[Round "10"]
[White "JSPrepz"]
[Black "Kacparov"]
[Result "1/2-1/2"]
[WhiteElo "2720"]
[BlackElo "2618"]
[TimeControl "180+2"]
[EndTime "15:22:37 PST"]
[Termination "Game drawn by 50-move rule"]

1. e4 {[%clk 0:03:01.9]} 1... c5 {[%clk 0:02:57.1]} 2. Nf3 {[%clk 0:03:02.8]}
2... Nc6 {[%clk 0:02:56.4]} 3. Bb5 {[%clk 0:03:03.2]} 3... g6 {[%clk 0:02:56.3]}
4. Nc3 {[%clk 0:03:03]} 4... Bg7 {[%clk 0:02:55.1]} 5. O-O {[%clk 0:02:59.8]}
5... Nd4 {[%clk 0:02:56.3]} 6. Nxd4 {[%clk 0:02:58.8]} 6... cxd4 {[%clk
0:02:56.6]} 7. Ne2 {[%clk 0:03:00.1]} 7... Qb6 {[%clk 0:02:54.6]} 8. Bd3 {[%clk
0:03:00.8]} 8... d6 {[%clk 0:02:43.1]} 9. a4 {[%clk 0:03:01.1]} 9... Nf6 {[%clk
0:02:35.9]} 10. c3 {[%clk 0:02:59.1]} 10... dxc3 {[%clk 0:02:36.6]} 11. bxc3
{[%clk 0:02:58.4]} 11... O-O {[%clk 0:02:37.5]} 12. a5 {[%clk 0:02:57.8]} 12...
Qc7 {[%clk 0:02:38.5]} 13. Bc2 {[%clk 0:02:57.7]} 13... Bd7 {[%clk 0:02:37.4]}
14. d4 {[%clk 0:02:55.4]} 14... Bb5 {[%clk 0:02:38.3]} 15. Bd3 {[%clk
0:02:54.2]} 15... Bxd3 {[%clk 0:02:36.7]} 16. Qxd3 {[%clk 0:02:56.1]} 16... Rac8
{[%clk 0:02:36.3]} 17. Bd2 {[%clk 0:02:53.8]} 17... Qc4 {[%clk 0:02:33.3]} 18.
Qf3 {[%clk 0:02:50.2]} 18... d5 {[%clk 0:02:32.8]} 19. exd5 {[%clk 0:02:49.4]}
19... Nxd5 {[%clk 0:02:32.1]} 20. Rfb1 {[%clk 0:02:50.2]} 20... Rc7 {[%clk
0:02:28.7]} 21. Rb2 {[%clk 0:02:13.3]} 21... e6 {[%clk 0:02:21.8]} 22. Rab1
{[%clk 0:02:12.2]} 22... Qa6 {[%clk 0:02:21.4]} 23. h4 {[%clk 0:02:10.8]} 23...
h5 {[%clk 0:02:21.6]} 24. Nf4 {[%clk 0:02:11.4]} 24... Rd7 {[%clk 0:02:20.1]}
25. Nd3 {[%clk 0:02:03.5]} 25... b6 {[%clk 0:02:16.5]} 26. axb6 {[%clk
0:02:01.2]} 26... axb6 {[%clk 0:02:17.3]} 27. Nf4 {[%clk 0:01:53]} 27... Nxf4
{[%clk 0:02:12]} 28. Bxf4 {[%clk 0:01:54.9]} 28... Rb7 {[%clk 0:02:01.4]} 29.
Qc6 {[%clk 0:01:56]} 29... Bf6 {[%clk 0:01:56.9]} 30. d5 {[%clk 0:01:46.3]}
30... Re7 {[%clk 0:01:40.6]} 31. Rxb6 {[%clk 0:01:41.2]} 31... Qd3 {[%clk
0:01:40.8]} 32. Bd6 {[%clk 0:01:39.9]} 32... exd5 {[%clk 0:01:36.9]} 33. Bxe7
{[%clk 0:01:38.4]} 33... Bxe7 {[%clk 0:01:38]} 34. g3 {[%clk 0:01:35.9]} 34...
Qf3 {[%clk 0:01:28.8]} 35. c4 {[%clk 0:01:25]} 35... Rd8 {[%clk 0:01:29.3]} 36.
cxd5 {[%clk 0:01:21.6]} 36... Qxd5 {[%clk 0:01:29.8]} 37. Qc7 {[%clk 0:01:07.1]}
37... Rd7 {[%clk 0:01:24.8]} 38. Rb8+ {[%clk 0:01:03.9]} 38... Kg7 {[%clk
0:01:24.7]} 39. Qc8 {[%clk 0:00:57.8]} 39... Rd8 {[%clk 0:01:25.5]} 40. Qc3+
{[%clk 0:00:49.5]} 40... Bf6 {[%clk 0:01:26.2]} 41. Rxd8 {[%clk 0:00:49.8]}
41... Qxd8 {[%clk 0:01:27.3]} 42. Qc4 {[%clk 0:00:50]} 42... Qd7 {[%clk
0:01:27.1]} 43. Rc1 {[%clk 0:00:48.2]} 43... Qe7 {[%clk 0:01:27.6]} 44. Qd5
{[%clk 0:00:47.8]} 44... Qa7 {[%clk 0:01:27.3]} 45. Rb1 {[%clk 0:00:48.1]} 45...
Qe7 {[%clk 0:01:27.9]} 46. Rb7 {[%clk 0:00:47.6]} 46... Qe8 {[%clk 0:01:29.1]}
47. Kg2 {[%clk 0:00:48.7]} 47... Kg8 {[%clk 0:01:29.1]} 48. Rb6 {[%clk 0:00:49]}
48... Kg7 {[%clk 0:01:29.8]} 49. Ra6 {[%clk 0:00:46.8]} 49... Qe7 {[%clk
0:01:30.4]} 50. Ra8 {[%clk 0:00:46.3]} 50... Qc7 {[%clk 0:01:30.8]} 51. Qe4
{[%clk 0:00:43.7]} 51... Be5 {[%clk 0:01:26.1]} 52. Re8 {[%clk 0:00:41]} 52...
Bf6 {[%clk 0:01:27]} 53. Qa8 {[%clk 0:00:41]} 53... Kh7 {[%clk 0:01:24.8]} 54.
Re4 {[%clk 0:00:39.1]} 54... Qd7 {[%clk 0:01:25.3]} 55. Rf4 {[%clk 0:00:33.3]}
55... Kg7 {[%clk 0:01:25]} 56. Qf3 {[%clk 0:00:33.9]} 56... Be5 {[%clk
0:01:24.7]} 57. Re4 {[%clk 0:00:35.3]} 57... Bf6 {[%clk 0:01:25.4]} 58. Rb4
{[%clk 0:00:36.4]} 58... Qe7 {[%clk 0:01:25.6]} 59. Rb7 {[%clk 0:00:36.5]} 59...
Qe6 {[%clk 0:01:26.8]} 60. Ra7 {[%clk 0:00:35.4]} 60... Bd4 {[%clk 0:01:26.8]}
61. Ra8 {[%clk 0:00:34.6]} 61... Bf6 {[%clk 0:01:27.4]} 62. Rb8 {[%clk
0:00:34.7]} 62... Be5 {[%clk 0:01:27.7]} 63. Rb7 {[%clk 0:00:35.8]} 63... Bf6
{[%clk 0:01:28.6]} 64. Rb3 {[%clk 0:00:29.6]} 64... Bd4 {[%clk 0:01:28.9]} 65.
Rd3 {[%clk 0:00:30.6]} 65... Bf6 {[%clk 0:01:29.7]} 66. Re3 {[%clk 0:00:32.1]}
66... Qd6 {[%clk 0:01:30.6]} 67. Qe4 {[%clk 0:00:33.1]} 67... Qd7 {[%clk
0:01:30]} 68. Rf3 {[%clk 0:00:33.9]} 68... Qd6 {[%clk 0:01:31.1]} 69. Qe8 {[%clk
0:00:34]} 69... Qd5 {[%clk 0:01:30]} 70. Qe3 {[%clk 0:00:30.9]} 70... Qc6 {[%clk
0:01:30.9]} 71. Qf4 {[%clk 0:00:30.7]} 71... Qe6 {[%clk 0:01:30.7]} 72. Kh2
{[%clk 0:00:31.7]} 72... Qc6 {[%clk 0:01:29.9]} 73. Re3 {[%clk 0:00:32.4]} 73...
Qd7 {[%clk 0:01:28.5]} 74. Qe4 {[%clk 0:00:32.3]} 74... Qd6 {[%clk 0:01:28.5]}
75. Rd3 {[%clk 0:00:33]} 75... Qb6 {[%clk 0:01:28.7]} 76. Qe2 {[%clk 0:00:32.8]}
76... Qc6 {[%clk 0:01:29.2]} 77. Qd2 {[%clk 0:00:33.8]} 77... Qe6 {[%clk
0:01:29.7]} 78. Rd6 {[%clk 0:00:34.9]} 78... Qe7 {[%clk 0:01:28.6]} 79. Rd7
{[%clk 0:00:36.2]} 79... Qe6 {[%clk 0:01:29.5]} 80. Qd3 {[%clk 0:00:37.5]} 80...
Qb6 {[%clk 0:01:24.2]} 81. Kg1 {[%clk 0:00:33]} 81... Qe6 {[%clk 0:01:24.3]} 82.
Rd6 {[%clk 0:00:33.2]} 82... Qe7 {[%clk 0:01:25.3]} 83. Rd7 {[%clk 0:00:34.1]}
83... Qe6 {[%clk 0:01:26.4]} 84. Kg2 {[%clk 0:00:29.2]} 84... Qe8 {[%clk
0:01:22.5]} 85. Qd5 {[%clk 0:00:28.6]} 85... Kg8 {[%clk 0:01:22.2]} 86. Ra7
{[%clk 0:00:21.3]} 86... Kg7 {[%clk 0:01:22.4]} 87. Ra8 {[%clk 0:00:22.7]} 87...
Qe7 {[%clk 0:01:22.2]} 88. Ra6 {[%clk 0:00:23.8]} 88... Be5 {[%clk 0:01:17.5]}
89. Qe4 {[%clk 0:00:23]} 89... Qc7 {[%clk 0:01:16.2]} 90. Rc6 {[%clk 0:00:23.8]}
90... Qb8 {[%clk 0:01:17.1]} 91. Rc5 {[%clk 0:00:22.9]} 91... Bf6 {[%clk
0:01:17.1]} 92. Rd5 {[%clk 0:00:23.5]} 92... Qc7 {[%clk 0:01:17]} 93. Qf3 {[%clk
0:00:24.3]} 93... Qe7 {[%clk 0:01:17.6]} 94. Rd3 {[%clk 0:00:24.8]} 94... Qe6
{[%clk 0:01:18.4]} 95. Rb3 {[%clk 0:00:25.5]} 95... Qe7 {[%clk 0:01:19.1]} 96.
Rb7 {[%clk 0:00:26.5]} 96... Qe6 {[%clk 0:01:18.8]} 97. Qb3 {[%clk 0:00:27.4]}
97... Qc6+ {[%clk 0:01:19.5]} 98. Qf3 {[%clk 0:00:28.2]} 98... Qe6 {[%clk
0:01:20.3]} 99. Kh2 {[%clk 0:00:29.2]} 99... Bd4 {[%clk 0:01:16.7]} 100. Rb4
{[%clk 0:00:21.9]} 1/2-1/2